[Event "Titled Tuesday Blitz December 20 Early 2022"]
[White "WiktoriaPOL"]
[Black "Larochelle, Martial"]
[BlackFideId "2016311"]
[WhiteElo "2241"]
[BlackElo "2039"]
[Result "0-1"]
[Round "06"]
[TimeControl "180+2"]
[Date "2022.12.20"]
[WhiteClock "0:00:01"]
[BlackClock "0:01:55"]

1. c4 {[%clk 0:02:56]}  e5 {[%clk 0:02:56]} 2. Nc3 {[%clk 0:02:53]}  Nf6 {[%clk 0:02:49]} 3. Nf3 {[%clk 0:02:48]}  Nc6 {[%clk 0:02:49]} 4. e4 {[%clk 0:02:47]}  Bb4 {[%clk 0:02:47]} 5. d3 {[%clk 0:02:46]}  O-O {[%clk 0:02:46]} 6. a3 {[%clk 0:02:46]}  Bxc3+ {[%clk 0:02:46]} 7. bxc3 {[%clk 0:02:45]}  d6 {[%clk 0:02:45]} 8. g3 {[%clk 0:02:44]}  Be6 {[%clk 0:02:44]} 9. Bg2 {[%clk 0:02:44]}  a6 {[%clk 0:02:45]} 10. O-O {[%clk 0:02:44]}  b5 {[%clk 0:02:45]} 11. cxb5 {[%clk 0:02:37]}  axb5 {[%clk 0:02:46]} 12. Ng5 {[%clk 0:02:35]}  Nd7 {[%clk 0:02:35]} 13. f4 {[%clk 0:02:27]}  h6 {[%clk 0:02:28]} 14. Nf3 {[%clk 0:01:55]}  f6 {[%clk 0:02:25]} 15. f5 {[%clk 0:01:49]}  Bf7 {[%clk 0:02:24]} 16. g4 {[%clk 0:01:43]}  d5 {[%clk 0:02:23]} 17. h4 {[%clk 0:01:27]}  dxe4 {[%clk 0:02:22]} 18. dxe4 {[%clk 0:01:26]}  Nc5 {[%clk 0:02:23]} 19. Qc2 {[%clk 0:00:52]}  Qd3 {[%clk 0:02:11]} 20. Qxd3 {[%clk 0:00:51]}  Nxd3 {[%clk 0:02:11]} 21. Be3 {[%clk 0:00:50]}  Rfd8 {[%clk 0:02:09]} 22. g5 {[%clk 0:00:42]}  hxg5 {[%clk 0:02:03]} 23. hxg5 {[%clk 0:00:41]}  Bc4 {[%clk 0:02:04]} 24. Rfb1 {[%clk 0:00:29]}  Ra4 {[%clk 0:02:00]} 25. gxf6 {[%clk 0:00:17]}  gxf6 {[%clk 0:02:00]} 26. Kh2 {[%clk 0:00:14]}  Rda8 {[%clk 0:01:57]} 27. Rg1 {[%clk 0:00:05]}  Rxa3 {[%clk 0:01:56]} 28. Bf1+ {[%clk 0:00:02]}  Kf7 {[%clk 0:01:56]} 29. Rd1 {[%clk 0:00:01]}  Ra2+ {[%clk 0:01:55]} 0-1


[Site "https://www.chess.com"]

[Event "Titled Tuesday Blitz December 20 Early 2022"]
[White "Witek, Tomasz"]
[Black "Klose, Eli"]
[WhiteFideId "1130056"]
[BlackFideId "16242955"]
[WhiteElo "2000"]
[BlackElo "1519"]
[Result "1-0"]
[Round "06"]
[TimeControl "180+2"]
[Date "2022.12.20"]
[WhiteClock "0:00:05"]
[BlackClock "0:00:13"]

1. d4 {[%clk 0:02:59]}  Nf6 {[%clk 0:02:57]} 2. Nf3 {[%clk 0:02:59]}  c5 {[%clk 0:02:56]} 3. e3 {[%clk 0:02:58]}  b6 {[%clk 0:02:55]} 4. Nc3 {[%clk 0:02:54]}  g6 {[%clk 0:02:54]} 5. a4 {[%clk 0:02:50]}  Ba6 {[%clk 0:02:36]} 6. Bb5 {[%clk 0:02:43]}  Bg7 {[%clk 0:02:32]} 7. O-O {[%clk 0:02:42]}  O-O {[%clk 0:02:30]} 8. d5 {[%clk 0:02:39]}  d6 {[%clk 0:02:28]} 9. e4 {[%clk 0:02:38]}  Ne8 {[%clk 0:02:10]} 10. Re1 {[%clk 0:02:22]}  Nc7 {[%clk 0:02:09]} 11. Bxa6 {[%clk 0:02:20]}  Ncxa6 {[%clk 0:02:00]} 12. Bf4 {[%clk 0:02:12]}  f6 {[%clk 0:01:55]} 13. h3 {[%clk 0:01:59]}  Nc7 {[%clk 0:01:55]} 14. Bh2 {[%clk 0:01:56]}  a6 {[%clk 0:01:53]} 15. Nd2 {[%clk 0:01:55]}  Nd7 {[%clk 0:01:53]} 16. Nc4 {[%clk 0:01:54]}  b5 {[%clk 0:01:45]} 17. Na5 {[%clk 0:01:54]}  b4 {[%clk 0:01:35]} 18. Nb1 {[%clk 0:01:42]}  Kh8 {[%clk 0:01:25]} 19. Nc6 {[%clk 0:01:39]}  Qe8 {[%clk 0:01:25]} 20. Nd2 {[%clk 0:01:38]}  Nb8 {[%clk 0:01:24]} 21. Na5 {[%clk 0:01:37]}  Qf7 {[%clk 0:01:22]} 22. Ndc4 {[%clk 0:01:30]}  Nd7 {[%clk 0:01:18]} 23. Qd2 {[%clk 0:01:18]}  Ne5 {[%clk 0:01:12]} 24. Rad1 {[%clk 0:01:13]}  Nxc4 {[%clk 0:01:10]} 25. Nxc4 {[%clk 0:01:14]}  Rad8 {[%clk 0:01:11]} 26. Qd3 {[%clk 0:01:07]}  Kg8 {[%clk 0:00:45]} 27. Kh1 {[%clk 0:01:03]}  f5 {[%clk 0:00:44]} 28. f3 {[%clk 0:01:02]}  f4 {[%clk 0:00:34]} 29. c3 {[%clk 0:00:55]}  bxc3 {[%clk 0:00:32]} 30. bxc3 {[%clk 0:00:56]}  g5 {[%clk 0:00:32]} 31. Rb1 {[%clk 0:00:50]}  Rb8 {[%clk 0:00:27]} 32. Na5 {[%clk 0:00:46]}  e6 {[%clk 0:00:23]} 33. c4 {[%clk 0:00:41]}  exd5 {[%clk 0:00:22]} 34. cxd5 {[%clk 0:00:36]}  Rb4 {[%clk 0:00:09]} 35. Nc6 {[%clk 0:00:30]}  Rxa4 {[%clk 0:00:07]} 36. Rb7 {[%clk 0:00:30]}  Rc8 {[%clk 0:00:04]} 37. Qb3 {[%clk 0:00:24]}  Ra1 {[%clk 0:00:01]} 38. Rxa1 {[%clk 0:00:23]}  Bxa1 {[%clk 0:00:02]} 39. Bg1 {[%clk 0:00:14]}  Bf6 {[%clk 0:00:02]} 40. Qb6 {[%clk 0:00:10]}  Kg7 {[%clk 0:00:02]} 41. e5 {[%clk 0:00:11]}  dxe5 {[%clk 0:00:02]} 42. d6 {[%clk 0:00:10]}  Kg6 {[%clk 0:00:01]} 43. Rxc7 {[%clk 0:00:11]}  Rxc7 {[%clk 0:00:01]} 44. Qxc7 {[%clk 0:00:10]}  Qd5 {[%clk 0:00:01]} 45. d7 {[%clk 0:00:09]}  e4 {[%clk 0:00:02]} 46. fxe4 {[%clk 0:00:05]}  Qxe4 {[%clk 0:00:03]} 47. d8=Q {[%clk 0:00:06]}  Bxd8 {[%clk 0:00:03]} 48. Qxd8 {[%clk 0:00:06]}  f3 {[%clk 0:00:04]} 49. Qg8+ {[%clk 0:00:05]}  Kh6 {[%clk 0:00:04]} 50. Qf8+ {[%clk 0:00:04]}  Kg6 {[%clk 0:00:04]} 51. Qxf3 {[%clk 0:00:05]}  Qxf3 {[%clk 0:00:04]} 52. gxf3 {[%clk 0:00:06]}  Kf5 {[%clk 0:00:05]} 53. Bxc5 {[%clk 0:00:06]}  Kf4 {[%clk 0:00:05]} 54. Kg2 {[%clk 0:00:06]}  h5 {[%clk 0:00:06]} 55. Bd6+ {[%clk 0:00:05]}  Kf5 {[%clk 0:00:06]} 56. Nd4+ {[%clk 0:00:05]}  Kf6 {[%clk 0:00:06]} 57. Bb4 {[%clk 0:00:06]}  Ke5 {[%clk 0:00:06]} 58. Bc3 {[%clk 0:00:06]}  Kf4 {[%clk 0:00:06]} 59. Bd2+ {[%clk 0:00:06]}  Ke5 {[%clk 0:00:06]} 60. Nb3 {[%clk 0:00:06]}  Kf5 {[%clk 0:00:06]} 61. Kg3 {[%clk 0:00:06]}  Kf6 {[%clk 0:00:06]} 62. Nc5 {[%clk 0:00:06]}  Kf5 {[%clk 0:00:06]} 63. Nxa6 {[%clk 0:00:06]}  g4 {[%clk 0:00:07]} 64. fxg4+ {[%clk 0:00:05]}  hxg4 {[%clk 0:00:07]} 65. h4 {[%clk 0:00:06]}  Kg6 {[%clk 0:00:08]} 66. Kxg4 {[%clk 0:00:06]}  Kh7 {[%clk 0:00:08]} 67. h5 {[%clk 0:00:06]}  Kg7 {[%clk 0:00:08]} 68. Kg5 {[%clk 0:00:06]}  Kh7 {[%clk 0:00:09]} 69. h6 {[%clk 0:00:06]}  Kg8 {[%clk 0:00:10]} 70. Kg6 {[%clk 0:00:07]}  Kh8 {[%clk 0:00:11]} 71. Bc3+ {[%clk 0:00:07]}  Kg8 {[%clk 0:00:12]} 72. h7+ {[%clk 0:00:07]}  Kf8 {[%clk 0:00:12]} 73. h8=Q+ {[%clk 0:00:08]}  Ke7 {[%clk 0:00:12]} 74. Qf6+ {[%clk 0:00:08]}  Kd7 {[%clk 0:00:13]} 75. Nc5+ {[%clk 0:00:07]}  Kc7 {[%clk 0:00:13]} 76. Be5+ {[%clk 0:00:05]}  Kc8 {[%clk 0:00:13]} 77. Qf8# {[%clk 0:00:05]} 1-0


[Site "https://www.chess.com"]

[Event "Titled Tuesday Blitz December 20 Early 2022"]
[White "Xiong, Jeffery"]
[Black "googlegoom"]
[WhiteFideId "2047640"]
[WhiteElo "2692"]
[BlackElo "2581"]
[Result "1-0"]
[Round "06"]
[TimeControl "180+2"]
[Date "2022.12.20"]
[WhiteClock "0:02:25"]
[BlackClock "0:00:01"]

1. b4 {[%clk 0:03:00]}  d5 {[%clk 0:02:59]} 2. e3 {[%clk 0:03:01]}  e5 {[%clk 0:02:54]} 3. a3 {[%clk 0:03:01]}  Nf6 {[%clk 0:02:50]} 4. Bb2 {[%clk 0:03:01]}  Bd6 {[%clk 0:02:51]} 5. Nf3 {[%clk 0:03:01]}  Qe7 {[%clk 0:02:51]} 6. d4 {[%clk 0:03:01]}  e4 {[%clk 0:02:50]} 7. Nfd2 {[%clk 0:03:01]}  a5 {[%clk 0:02:46]} 8. b5 {[%clk 0:03:01]}  c6 {[%clk 0:02:31]} 9. c4 {[%clk 0:03:02]}  O-O {[%clk 0:02:31]} 10. Nc3 {[%clk 0:03:02]}  Bg4 {[%clk 0:02:30]} 11. Qb3 {[%clk 0:03:01]}  Qe6 {[%clk 0:02:20]} 12. h3 {[%clk 0:03:00]}  Bh5 {[%clk 0:02:18]} 13. g4 {[%clk 0:03:00]}  Bg6 {[%clk 0:02:18]} 14. g5 {[%clk 0:03:00]}  Nh5 {[%clk 0:02:02]} 15. cxd5 {[%clk 0:03:00]}  Qe7 {[%clk 0:01:26]} 16. dxc6 {[%clk 0:02:50]}  bxc6 {[%clk 0:01:27]} 17. bxc6 {[%clk 0:02:51]}  Nxc6 {[%clk 0:01:26]} 18. Qd5 {[%clk 0:02:51]}  Rab8 {[%clk 0:01:19]} 19. Nc4 {[%clk 0:02:44]}  Na7 {[%clk 0:00:52]} 20. Qxd6 {[%clk 0:02:40]}  Qxd6 {[%clk 0:00:50]} 21. Nxd6 {[%clk 0:02:40]}  Rxb2 {[%clk 0:00:50]} 22. Ncxe4 {[%clk 0:02:40]}  f6 {[%clk 0:00:40]} 23. Bc4+ {[%clk 0:02:40]}  Kh8 {[%clk 0:00:39]} 24. O-O {[%clk 0:02:37]}  fxg5 {[%clk 0:00:21]} 25. Nxg5 {[%clk 0:02:38]}  h6 {[%clk 0:00:21]} 26. Ngf7+ {[%clk 0:02:38]}  Kh7 {[%clk 0:00:21]} 27. Ne5 {[%clk 0:02:38]}  Rf6 {[%clk 0:00:05]} 28. Ndf7 {[%clk 0:02:25]}  Bxf7 {[%clk 0:00:04]} 29. Bxf7 {[%clk 0:02:25]}  g6 {[%clk 0:00:01]} 30. Rab1 {[%clk 0:02:25]} 1-0


[Site "https://www.chess.com"]

[Event "Titled Tuesday Blitz December 20 Early 2022"]
[White "Yurasova_Daria"]
[Black "Tsigelnitskiy, Ilusha"]
[BlackFideId "4132971"]
[WhiteElo "2502"]
[BlackElo "2342"]
[Result "1-0"]
[Round "06"]
[TimeControl "180+2"]
[Date "2022.12.20"]
[WhiteClock "0:01:39"]
[BlackClock "0:00:17"]

1. d4 {[%clk 0:03:00]}  e6 {[%clk 0:02:59]} 2. Nf3 {[%clk 0:02:59]}  Nf6 {[%clk 0:02:59]} 3. c4 {[%clk 0:02:56]}  Bb4+ {[%clk 0:02:58]} 4. Bd2 {[%clk 0:02:56]}  Qe7 {[%clk 0:02:57]} 5. g3 {[%clk 0:02:56]}  O-O {[%clk 0:02:57]} 6. Bg2 {[%clk 0:02:56]}  d5 {[%clk 0:02:57]} 7. O-O {[%clk 0:02:56]}  Rd8 {[%clk 0:02:56]} 8. Qc2 {[%clk 0:02:31]}  Bxd2 {[%clk 0:02:34]} 9. Nbxd2 {[%clk 0:02:32]}  Nbd7 {[%clk 0:02:08]} 10. cxd5 {[%clk 0:02:29]}  exd5 {[%clk 0:02:00]} 11. Qxc7 {[%clk 0:02:27]}  b6 {[%clk 0:01:58]} 12. e3 {[%clk 0:02:17]}  Ba6 {[%clk 0:01:57]} 13. Rfc1 {[%clk 0:02:16]}  Rac8 {[%clk 0:01:57]} 14. Qxa7 {[%clk 0:02:14]}  Ra8 {[%clk 0:01:49]} 15. Qc7 {[%clk 0:02:12]}  Rac8 {[%clk 0:01:48]} 16. Qf4 {[%clk 0:02:11]}  Qb4 {[%clk 0:01:42]} 17. Rxc8 {[%clk 0:02:05]}  Rxc8 {[%clk 0:01:43]} 18. Nb3 {[%clk 0:02:01]}  h6 {[%clk 0:01:32]} 19. Ne5 {[%clk 0:01:59]}  Nf8 {[%clk 0:01:12]} 20. Qf5 {[%clk 0:01:42]}  Qd6 {[%clk 0:00:20]} 21. Bf1 {[%clk 0:01:40]}  Bc4 {[%clk 0:00:17]} 22. Qxc8 {[%clk 0:01:39]} 1-0


[Site "https://www.chess.com"]

[Event "Titled Tuesday Blitz December 20 Early 2022"]
[White "aidenzhouu"]
[Black "Coachpoker"]
[WhiteElo "2386"]
[BlackElo "2626"]
[Result "1-0"]
[Round "06"]
[TimeControl "180+2"]
[Date "2022.12.20"]
[WhiteClock "0:00:15"]
[BlackClock "0:01:28"]

1. d4 {[%clk 0:02:57]}  d5 {[%clk 0:02:59]} 2. c4 {[%clk 0:02:57]}  dxc4 {[%clk 0:03:00]} 3. Nf3 {[%clk 0:02:57]}  Nf6 {[%clk 0:03:01]} 4. e3 {[%clk 0:02:57]}  e6 {[%clk 0:03:01]} 5. Bxc4 {[%clk 0:02:57]}  a6 {[%clk 0:03:01]} 6. Nc3 {[%clk 0:02:56]}  b5 {[%clk 0:03:01]} 7. Bb3 {[%clk 0:02:56]}  Bb7 {[%clk 0:03:02]} 8. O-O {[%clk 0:02:56]}  Nbd7 {[%clk 0:03:02]} 9. a3 {[%clk 0:02:46]}  c5 {[%clk 0:03:02]} 10. Qe2 {[%clk 0:02:41]}  Be7 {[%clk 0:03:02]} 11. Rd1 {[%clk 0:02:33]}  Qb6 {[%clk 0:03:02]} 12. e4 {[%clk 0:02:16]}  cxd4 {[%clk 0:02:56]} 13. Nxd4 {[%clk 0:02:15]}  Bc5 {[%clk 0:02:50]} 14. Be3 {[%clk 0:01:55]}  Nxe4 {[%clk 0:02:47]} 15. Nxe4 {[%clk 0:01:54]}  Bxe4 {[%clk 0:02:48]} 16. Nxe6 {[%clk 0:01:11]}  fxe6 {[%clk 0:02:40]} 17. Rxd7 {[%clk 0:01:06]}  Kxd7 {[%clk 0:02:20]} 18. Bxc5 {[%clk 0:01:04]}  Qxc5 {[%clk 0:02:21]} 19. Qxe4 {[%clk 0:01:03]}  Rhe8 {[%clk 0:02:05]} 20. Qb7+ {[%clk 0:00:55]}  Kd6 {[%clk 0:02:05]} 21. Rd1+ {[%clk 0:00:40]}  Ke5 {[%clk 0:01:42]} 22. Qxg7+ {[%clk 0:00:22]}  Kf5 {[%clk 0:01:42]} 23. Qf7+ {[%clk 0:00:17]}  Kg5 {[%clk 0:01:38]} 24. Qg7+ {[%clk 0:00:18]}  Kf5 {[%clk 0:01:38]} 25. Re1 {[%clk 0:00:15]}  e5 {[%clk 0:01:33]} 26. g4+ {[%clk 0:00:16]}  Kf4 {[%clk 0:01:33]} 27. Qf6+ {[%clk 0:00:14]}  Kxg4 {[%clk 0:01:30]} 28. Re4+ {[%clk 0:00:14]}  Kh3 {[%clk 0:01:28]} 29. Qh4# {[%clk 0:00:15]} 1-0


[Site "https://www.chess.com"]

[Event "Titled Tuesday Blitz December 20 Early 2022"]
[White "alexrustemov"]
[Black "Zahid, Sanatan"]
[BlackFideId "10201963"]
[WhiteElo "2891"]
[BlackElo "1930"]
[Result "1/2-1/2"]
[Round "06"]
[TimeControl "180+2"]
[Date "2022.12.20"]
[WhiteClock "0:00:07"]
[BlackClock "0:00:10"]

1. d4 {[%clk 0:02:56]}  e6 {[%clk 0:02:57]} 2. c4 {[%clk 0:02:55]}  b6 {[%clk 0:02:57]} 3. e4 {[%clk 0:02:55]}  Bb4+ {[%clk 0:02:57]} 4. Bd2 {[%clk 0:02:54]}  Bxd2+ {[%clk 0:02:56]} 5. Nxd2 {[%clk 0:02:54]}  d5 {[%clk 0:02:57]} 6. Qg4 {[%clk 0:02:37]}  Nf6 {[%clk 0:02:52]} 7. Qxg7 {[%clk 0:02:36]}  Rg8 {[%clk 0:02:52]} 8. Qh6 {[%clk 0:02:36]}  dxe4 {[%clk 0:02:53]} 9. Qe3 {[%clk 0:02:29]}  Bb7 {[%clk 0:02:51]} 10. h3 {[%clk 0:02:27]}  Nc6 {[%clk 0:02:51]} 11. Ne2 {[%clk 0:02:25]}  Nb4 {[%clk 0:02:45]} 12. O-O-O {[%clk 0:02:21]}  Nxa2+ {[%clk 0:02:28]} 13. Kb1 {[%clk 0:02:21]}  Nb4 {[%clk 0:02:28]} 14. Nc3 {[%clk 0:02:19]}  Qd7 {[%clk 0:02:27]} 15. g4 {[%clk 0:02:10]}  O-O-O {[%clk 0:02:26]} 16. g5 {[%clk 0:02:08]}  Ne8 {[%clk 0:02:21]} 17. Ndxe4 {[%clk 0:02:07]}  h6 {[%clk 0:02:14]} 18. h4 {[%clk 0:02:05]}  hxg5 {[%clk 0:02:09]} 19. hxg5 {[%clk 0:02:06]}  Ng7 {[%clk 0:02:09]} 20. Nf6 {[%clk 0:02:00]}  Nf5 {[%clk 0:01:54]} 21. Qf4 {[%clk 0:01:40]}  Qd6 {[%clk 0:01:46]} 22. Qxd6 {[%clk 0:01:39]}  cxd6 {[%clk 0:01:43]} 23. Rg1 {[%clk 0:01:21]}  Rh8 {[%clk 0:01:41]} 24. d5 {[%clk 0:01:19]}  e5 {[%clk 0:01:36]} 25. Be2 {[%clk 0:01:14]}  Nd4 {[%clk 0:01:20]} 26. Bh5 {[%clk 0:01:11]}  Rdf8 {[%clk 0:01:16]} 27. Rh1 {[%clk 0:01:04]}  Ba6 {[%clk 0:01:14]} 28. Nce4 {[%clk 0:00:51]}  Kc7 {[%clk 0:01:08]} 29. Bxf7 {[%clk 0:00:41]}  Rxh1 {[%clk 0:01:00]} 30. Rxh1 {[%clk 0:00:42]}  Rxf7 {[%clk 0:00:54]} 31. g6 {[%clk 0:00:42]}  Re7 {[%clk 0:00:54]} 32. Rh7 {[%clk 0:00:39]}  Nf5 {[%clk 0:00:54]} 33. Ng8 {[%clk 0:00:32]}  Rg7 {[%clk 0:00:47]} 34. Nh6 {[%clk 0:00:26]}  Kb8 {[%clk 0:00:33]} 35. Nxf5 {[%clk 0:00:24]}  Rxg6 {[%clk 0:00:34]} 36. b3 {[%clk 0:00:20]}  Nxd5 {[%clk 0:00:33]} 37. Nfxd6 {[%clk 0:00:17]}  Nc3+ {[%clk 0:00:30]} 38. Kb2 {[%clk 0:00:18]}  Nxe4 {[%clk 0:00:30]} 39. Nxe4 {[%clk 0:00:17]}  Bb7 {[%clk 0:00:30]} 40. Rh8+ {[%clk 0:00:15]}  Kc7 {[%clk 0:00:30]} 41. Nc3 {[%clk 0:00:14]}  a6 {[%clk 0:00:29]} 42. Rf8 {[%clk 0:00:14]}  Bc6 {[%clk 0:00:27]} 43. Kc2 {[%clk 0:00:14]}  Rg1 {[%clk 0:00:25]} 44. Kd2 {[%clk 0:00:13]}  Kd6 {[%clk 0:00:25]} 45. b4 {[%clk 0:00:13]}  a5 {[%clk 0:00:24]} 46. Rf6+ {[%clk 0:00:13]}  Kc7 {[%clk 0:00:22]} 47. b5 {[%clk 0:00:14]}  Bb7 {[%clk 0:00:22]} 48. Na4 {[%clk 0:00:14]}  Rg4 {[%clk 0:00:11]} 49. Nxb6 {[%clk 0:00:14]}  Rd4+ {[%clk 0:00:11]} 50. Kc3 {[%clk 0:00:14]}  Rd1 {[%clk 0:00:10]} 51. Na4 {[%clk 0:00:14]}  Rc1+ {[%clk 0:00:10]} 52. Kb3 {[%clk 0:00:14]}  Be4 {[%clk 0:00:10]} 53. Nc3 {[%clk 0:00:13]}  Bd3 {[%clk 0:00:10]} 54. c5 {[%clk 0:00:12]}  a4+ {[%clk 0:00:09]} 55. Kb4 {[%clk 0:00:12]}  a3 {[%clk 0:00:09]} 56. Kb3 {[%clk 0:00:12]}  a2 {[%clk 0:00:10]} 57. Rc6+ {[%clk 0:00:10]}  Kb7 {[%clk 0:00:09]} 58. Nxa2 {[%clk 0:00:11]}  Rb1+ {[%clk 0:00:08]} 59. Kc3 {[%clk 0:00:09]}  Rxb5 {[%clk 0:00:08]} 60. Rb6+ {[%clk 0:00:05]}  Rxb6 {[%clk 0:00:08]} 61. cxb6 {[%clk 0:00:05]}  Bb1 {[%clk 0:00:09]} 62. Nb4 {[%clk 0:00:05]}  Kxb6 {[%clk 0:00:09]} 63. Nd3 {[%clk 0:00:05]}  Bxd3 {[%clk 0:00:08]} 64. Kxd3 {[%clk 0:00:06]}  Kc5 {[%clk 0:00:09]} 65. Ke4 {[%clk 0:00:06]}  Kd6 {[%clk 0:00:09]} 66. f4 {[%clk 0:00:06]}  exf4 {[%clk 0:00:10]} 67. Kxf4 {[%clk 0:00:07]} 1/2-1/2


[Site "https://www.chess.com"]

[Event "Titled Tuesday Blitz December 20 Early 2022"]
[White "bardiya_Daneshvar"]
[Black "Goryachkina, Aleksandra"]
[BlackFideId "4147103"]
[WhiteElo "2903"]
[BlackElo "2571"]
[Result "1-0"]
[Round "06"]
[TimeControl "180+2"]
[Date "2022.12.20"]
[WhiteClock "0:00:10"]
[BlackClock "0:00:01"]

1. b3 {[%clk 0:03:00]}  d5 {[%clk 0:02:59]} 2. Bb2 {[%clk 0:03:00]}  c6 {[%clk 0:02:55]} 3. e3 {[%clk 0:02:59]}  Bf5 {[%clk 0:02:52]} 4. Nf3 {[%clk 0:02:58]}  e6 {[%clk 0:02:51]} 5. d4 {[%clk 0:02:56]}  Nf6 {[%clk 0:02:50]} 6. Bd3 {[%clk 0:02:56]}  Bxd3 {[%clk 0:02:48]} 7. Qxd3 {[%clk 0:02:57]}  Nbd7 {[%clk 0:02:48]} 8. O-O {[%clk 0:02:57]}  Be7 {[%clk 0:02:46]} 9. c4 {[%clk 0:02:58]}  O-O {[%clk 0:02:46]} 10. Nc3 {[%clk 0:02:57]}  Re8 {[%clk 0:02:44]} 11. e4 {[%clk 0:02:56]}  dxe4 {[%clk 0:02:37]} 12. Nxe4 {[%clk 0:02:57]}  Nxe4 {[%clk 0:02:35]} 13. Qxe4 {[%clk 0:02:58]}  Bf6 {[%clk 0:02:30]} 14. Qc2 {[%clk 0:02:54]}  Qc7 {[%clk 0:02:29]} 15. Rfe1 {[%clk 0:02:53]}  Rad8 {[%clk 0:02:28]} 16. Rad1 {[%clk 0:02:45]}  h6 {[%clk 0:02:28]} 17. Re2 {[%clk 0:02:37]}  Nf8 {[%clk 0:02:27]} 18. g3 {[%clk 0:02:34]}  Ng6 {[%clk 0:02:26]} 19. Kg2 {[%clk 0:02:32]}  Ne7 {[%clk 0:02:25]} 20. Qe4 {[%clk 0:02:24]}  Nf5 {[%clk 0:02:22]} 21. Red2 {[%clk 0:02:23]}  Re7 {[%clk 0:02:01]} 22. Ne5 {[%clk 0:02:17]}  Bxe5 {[%clk 0:01:56]} 23. dxe5 {[%clk 0:02:17]}  Rxd2 {[%clk 0:01:54]} 24. Rxd2 {[%clk 0:02:17]}  Rd7 {[%clk 0:01:54]} 25. Bc3 {[%clk 0:01:58]}  Qd8 {[%clk 0:01:34]} 26. Rxd7 {[%clk 0:01:53]}  Qxd7 {[%clk 0:01:35]} 27. Qe2 {[%clk 0:01:46]}  c5 {[%clk 0:01:30]} 28. Qd2 {[%clk 0:01:46]}  Qxd2 {[%clk 0:01:13]} 29. Bxd2 {[%clk 0:01:47]}  b6 {[%clk 0:01:13]} 30. Kf3 {[%clk 0:01:41]}  Kf8 {[%clk 0:01:09]} 31. g4 {[%clk 0:01:39]}  Nd4+ {[%clk 0:01:07]} 32. Ke4 {[%clk 0:01:39]}  Nc6 {[%clk 0:01:01]} 33. h4 {[%clk 0:01:36]}  Ke7 {[%clk 0:00:59]} 34. h5 {[%clk 0:01:31]}  Kd7 {[%clk 0:00:59]} 35. Bc3 {[%clk 0:01:19]}  Ne7 {[%clk 0:00:54]} 36. a3 {[%clk 0:01:15]}  g6 {[%clk 0:00:52]} 37. g5 {[%clk 0:00:46]}  gxh5 {[%clk 0:00:27]} 38. gxh6 {[%clk 0:00:46]}  Ng6 {[%clk 0:00:27]} 39. h7 {[%clk 0:00:45]}  Ke7 {[%clk 0:00:26]} 40. Bd2 {[%clk 0:00:44]}  f5+ {[%clk 0:00:25]} 41. exf6+ {[%clk 0:00:40]}  Kf7 {[%clk 0:00:17]} 42. Bg5 {[%clk 0:00:34]}  Ke8 {[%clk 0:00:11]} 43. b4 {[%clk 0:00:23]}  Kf7 {[%clk 0:00:11]} 44. bxc5 {[%clk 0:00:21]}  bxc5 {[%clk 0:00:11]} 45. f4 {[%clk 0:00:17]}  Ke8 {[%clk 0:00:03]} 46. Bh6 {[%clk 0:00:11]}  h4 {[%clk 0:00:01]} 47. Bg7 {[%clk 0:00:10]}  h3 {[%clk 0:00:01]} 48. Kf3 {[%clk 0:00:11]}  Kf7 {[%clk 0:00:01]} 49. h8=Q {[%clk 0:00:10]} 1-0


[Site "https://www.chess.com"]

[Event "Titled Tuesday Blitz December 20 Early 2022"]
[White "deibittowers"]
[Black "Najdoski, Toni"]
[BlackFideId "15001334"]
[WhiteElo "2072"]
[BlackElo "2598"]
[Result "0-1"]
[Round "06"]
[TimeControl "180+2"]
[Date "2022.12.20"]
[WhiteClock "0:00:03"]
[BlackClock "0:01:16"]

1. e4 {[%clk 0:02:55]}  c5 {[%clk 0:02:59]} 2. Nf3 {[%clk 0:02:54]}  e6 {[%clk 0:02:58]} 3. d4 {[%clk 0:02:54]}  cxd4 {[%clk 0:02:59]} 4. Nxd4 {[%clk 0:02:55]}  Nc6 {[%clk 0:02:59]} 5. Nxc6 {[%clk 0:02:54]}  bxc6 {[%clk 0:02:59]} 6. Bd3 {[%clk 0:02:54]}  d5 {[%clk 0:03:00]} 7. O-O {[%clk 0:02:54]}  Bc5 {[%clk 0:02:57]} 8. Qe2 {[%clk 0:02:52]}  Ne7 {[%clk 0:02:57]} 9. Nd2 {[%clk 0:02:43]}  O-O {[%clk 0:02:55]} 10. e5 {[%clk 0:02:34]}  Ng6 {[%clk 0:02:49]} 11. Nf3 {[%clk 0:02:31]}  a5 {[%clk 0:02:46]} 12. Bg5 {[%clk 0:02:21]}  Qb6 {[%clk 0:02:43]} 13. Rae1 {[%clk 0:01:58]}  Ba6 {[%clk 0:02:40]} 14. h4 {[%clk 0:01:44]}  Bxd3 {[%clk 0:02:33]} 15. cxd3 {[%clk 0:01:44]}  h6 {[%clk 0:02:20]} 16. Bc1 {[%clk 0:01:40]}  a4 {[%clk 0:02:17]} 17. h5 {[%clk 0:01:37]}  Ne7 {[%clk 0:02:17]} 18. Nh4 {[%clk 0:01:06]}  Bb4 {[%clk 0:02:13]} 19. Rd1 {[%clk 0:01:03]}  a3 {[%clk 0:02:06]} 20. b3 {[%clk 0:00:59]}  d4 {[%clk 0:02:04]} 21. f4 {[%clk 0:00:53]}  Nd5 {[%clk 0:02:02]} 22. Rf3 {[%clk 0:00:41]}  Be7 {[%clk 0:02:01]} 23. Qf2 {[%clk 0:00:34]}  Qc5 {[%clk 0:01:51]} 24. f5 {[%clk 0:00:25]}  Bxh4 {[%clk 0:01:46]} 25. Qxh4 {[%clk 0:00:26]}  Ne3 {[%clk 0:01:40]} 26. f6 {[%clk 0:00:13]}  Qc2 {[%clk 0:01:27]} 27. Bxe3 {[%clk 0:00:02]}  Qxd1+ {[%clk 0:01:24]} 28. Rf1 {[%clk 0:00:03]}  Qxd3 {[%clk 0:01:25]} 29. Qg3 {[%clk 0:00:02]}  g5 {[%clk 0:01:16]} 30. hxg6 {[%clk 0:00:03]}  Qxe3+ {[%clk 0:01:16]} 0-1


[Site "https://www.chess.com"]